fUSD/lending_fUSD_20250503
["ID","MTS","AMOUNT","RATE_DAILY","PERIOD"]
[359728586,1746283499682,-450.0,0.00019622,2]
[359728587,1746283499703,-450.0,0.00019622,2]
[359728588,1746283499723,-500.0,0.00019622,2]
[359728589,1746283499744,-2640.69,0.00019622,2]
[359728590,1746283499764,-450.0,0.00019622,2]
[359728591,1746283499784,-450.0,0.00019622,2]
[359728592,1746283499804,-450.0,0.00019622,2]
[359728593,1746283499824,-450.0,0.00019622,2]
[359728594,1746283499844,-450.0,0.00019622,2]
[359728595,1746283499864,-457.37785718,0.00019622,2]
[359728596,1746283499884,-450.0,0.00019622,2]
[359728597,1746283499904,-450.0,0.00019622,2]
[359728598,1746283499924,-450.0,0.00019622,2]
[359728599,1746283499943,-450.0,0.00019622,2]
[359728600,1746283499963,-450.0,0.00019622,2]
[359728601,1746283499983,-324.99534254,0.00019622,2]
[359728602,1746283500003,-450.0,0.00019622,2]
[359728603,1746283500026,-582.62,0.00019622,2]
[359728604,1746283500047,-450.0,0.00019622,2]
[359728605,1746283500068,-260.07111918,0.00019622,2]
[359728606,1746283500089,-450.0,0.00019622,2]
[359728607,1746283500109,-450.0,0.00019622,2]
[359728608,1746283500131,-1252.3,0.00019622,2]
[359728609,1746283500152,-202.81456167,0.00019622,2]
[359728610,1746283500174,-450.0,0.00019622,2]
[359728611,1746283500197,-450.0,0.00019622,2]
[359728612,1746283500219,-450.0,0.00019622,2]
[359728613,1746283500239,-2557.27,0.00019622,2]
[359728614,1746283500261,-461.82,0.00019622,2]
[359728615,1746283500283,-450.0,0.00019622,2]
[359728616,1746283500304,-1113.94,0.00019622,2]
[359728617,1746283500325,-198.04898131,0.00019622,2]
[359728618,1746283500347,-450.0,0.00019622,2]
[359728619,1746283500372,-450.0,0.00019622,2]
[359728620,1746283500392,-450.0,0.00019622,2]
[359728621,1746283500414,-750.41,0.00019623,2]
[359728622,1746283500435,-750.41,0.00019623,2]
[359728623,1746283500456,-500.0,0.00019623,2]
[359728624,1746283500477,-628.07395844,0.00019623,2]
[359728625,1746283500498,-500.0,0.00019623,2]
[359728626,1746283500520,-500.0,0.00019623,2]
[359728627,1746283500541,-500.0,0.00019623,2]
[359728628,1746283500561,-460.75,0.00019624,2]
[359728629,1746283500583,-450.0,0.00019624,2]
[359728630,1746283500604,-450.0,0.00019624,2]
[359728631,1746283500625,-464.37910096,0.00019624,2]
[359728632,1746283500646,-450.0,0.00019624,2]
[359728633,1746283500667,-159.33280946,0.00019624,2]
[359728634,1746283500688,-557.7,0.00019624,2]
[359728635,1746283500709,-533.76899943,0.00019624,2]
[359728636,1746283500731,-450.0,0.00019624,2]
[359728637,1746283500752,-450.0,0.00019624,2]
[359728638,1746283500774,-450.0,0.00019624,2]
[359728639,1746283500795,-450.0,0.00019624,2]
[359728640,1746283501027,-450.0,0.00019624,2]
[359728641,1746283501049,-450.0,0.00019624,2]
[359728642,1746283501071,-512.32,0.00019624,2]
[359728643,1746283501095,-450.0,0.00019624,2]
[359728644,1746283501117,-450.0,0.00019624,2]
[359728645,1746283501138,-450.0,0.00019624,2]
[359728646,1746283501159,-450.0,0.00019624,2]
[359728647,1746283501184,-2196.47,0.00019624,2]
[359728648,1746283501206,-450.0,0.00019624,2]
[359728649,1746283501227,-477.31,0.00019624,2]
[359728650,1746283501250,-450.0,0.00019624,2]
[359728651,1746283501273,-633.44,0.00019624,2]
[359728652,1746283501293,-480.76007786,0.00019624,2]
[359728653,1746283501315,-450.0,0.00019624,2]
[359728654,1746283501336,-450.0,0.00019624,2]
[359728655,1746283501358,-450.0,0.00019624,2]
[359728656,1746283501380,-493.53,0.00019624,2]
[359728657,1746283501403,-941.77,0.00019624,2]
[359728658,1746283501425,-813.63,0.00019624,2]
[359728659,1746283501447,-450.0,0.00019624,2]
[359728660,1746283501469,-450.0,0.00019624,2]
[359728661,1746283501491,-450.0,0.00019624,2]
[359728662,1746283501512,-450.0,0.00019624,2]
[359728663,1746283501536,-745.21,0.00019624,2]
[359728664,1746283501557,-450.0,0.00019624,2]
[359728665,1746283501580,-703.0,0.00019624,2]
[359728666,1746283501602,-450.0,0.00019624,2]
[359728667,1746283501625,-4098.24805815,0.00019648,2]
[359728668,1746283501645,-999.0,0.00019671,2]
[359728669,1746283501666,-369.03481286,0.00019673,2]
[359728670,1746283501687,-500.0,0.00019673,2]
[359728671,1746283501712,-500.0,0.00019673,2]
[359728672,1746283501733,-500.0,0.00019673,2]
[359728673,1746283501755,-500.0,0.00019673,2]
[359728674,1746283501777,-500.0,0.00019673,2]
[359728675,1746283501799,-500.0,0.00019673,2]
[359728676,1746283501820,-500.0,0.00019673,2]
[359728677,1746283501841,-500.0,0.00019673,2]
[359728678,1746283501862,-162.1885406,0.00019673,2]
[359728679,1746283501883,-500.0,0.00019673,2]
[359728680,1746283501903,-500.0,0.00019673,2]
[359728681,1746283501924,-500.0,0.00019673,2]
[359728682,1746283501945,-500.0,0.00019673,2]
[359728683,1746283501967,-366.33056747,0.00019673,2]
[359728684,1746283501988,-500.0,0.00019673,2]
[359728685,1746283502009,-500.0,0.00019673,2]
[359728686,1746283502030,-500.0,0.00019673,2]
[359728687,1746283502051,-500.0,0.00019673,2]
[359728688,1746283502072,-160.11863319,0.00019673,2]
[359728689,1746283502095,-4098.24805815,0.0001969,2]
[359728690,1746283502116,-70533.39211185,0.000197,2]
[359728691,1746283502138,-583.79286018,0.00019706,2]
[359728692,1746283502162,-3204.03173515,0.00019707,2]
[359728693,1746283502188,-4098.24805815,0.00019732,2]
[359728694,1746283502210,-750.41,0.00019749,2]
[359728695,1746283502233,-500.0,0.00019749,2]
[359728696,1746283502256,-3204.03173515,0.00019755,2]
[359728697,1746283502280,-157.122743,0.00019762,2]
[359728698,1746283502305,-157.122745,0.00019762,2]
[359728699,1746283502327,-198.18161,0.00019772,2]
[359728700,1746283502348,-198.181611,0.00019772,2]
[359728701,1746283502368,-151.0,0.00019773,2]
[359728702,1746283502392,-4098.24805815,0.00019774,2]
[359728703,1746283502414,-157.122743,0.00019789,2]
[359728704,1746283502435,-157.122745,0.00019789,2]
[359728705,1746283502457,-157.122743,0.0001979,2]
[359728706,1746283502479,-157.122745,0.0001979,2]
[359728707,1746283502501,-198.18161,0.00019792,2]
[359728708,1746283502524,-198.181611,0.00019792,2]
[359728709,1746283502545,-277.35682518,0.00019796,2]
[359728710,1746283502566,-319.8721596,0.00019797,2]
[359728711,1746283502589,-193.69862738,0.00019797,2]
[359728712,1746283502610,-3375.324069,0.00019799,2]
[359728713,1746283502631,-151.0,0.00019802,2]
[359728714,1746283502655,-3204.03173515,0.00019803,2]
[359728715,1746283502678,-319.87215957,0.00019814,2]
[359728716,1746283502700,-4098.24805815,0.00019816,2]
[359728717,1746283502721,-193.69862737,0.00019823,2]
[359728718,1746283502744,-319.87215957,0.00019831,2]
[359728719,1746283502765,-2000.0,0.0001984,2]
[359728720,1746283502788,-319.87215957,0.00019849,2]
[359728721,1746283502809,-193.69862737,0.00019849,2]
[359728722,1746283502831,-3204.03173515,0.00019852,2]
[359728723,1746283502857,-4098.24805815,0.00019858,2]
[359728724,1746283502878,-12500.0,0.00019865,2]
[359728725,1746283502899,-319.87215957,0.00019866,2]
[359728726,1746283502919,-500.0,0.00019873,2]
[359728727,1746283502940,-500.0,0.00019873,2]
[359728728,1746283502961,-500.0,0.00019873,2]
[359728729,1746283502983,-500.0,0.00019873,2]
[359728730,1746283503004,-500.0,0.00019873,2]
[359728731,1746283503033,-504.43483647,0.00019873,2]
[359728732,1746283503058,-544.89074326,0.00019873,2]
[359728733,1746283503083,-160.20238278,0.00019873,2]
[359728734,1746283503108,-505.26039964,0.00019873,2]
[359728735,1746283503132,-12500.0,0.00019874,2]
[359728736,1746283503156,-193.69862737,0.00019874,2]
[359728737,1746283503181,-12500.0,0.00019882,2]
[359728738,1746283503204,-319.87215957,0.00019883,2]
[359728739,1746283503227,-12500.0,0.00019891,2]
[359728740,1746283503250,-500.0,0.00019894,2]
[359728741,1746283503273,-450.0,0.00019894,2]
[359728742,1746283503296,-450.0,0.00019894,2]
[359728743,1746283503318,-450.0,0.00019894,2]
[359728744,1746283503342,-450.0,0.00019894,2]
[359728745,1746283503366,-450.0,0.00019894,2]
[359728746,1746283503391,-518.15,0.00019894,2]
[359728747,1746283503415,-450.0,0.00019894,2]
[359728748,1746283503438,-450.0,0.00019894,2]
[359728749,1746283503460,-450.0,0.00019894,2]
[359728750,1746283503483,-4267.93,0.00019894,2]
[359728751,1746283503506,-510.95,0.00019895,2]
[359728752,1746283503529,-450.0,0.00019895,2]
[359728753,1746283503551,-664.15,0.00019895,2]
[359728754,1746283503574,-450.0,0.00019895,2]
[359728755,1746283503597,-450.0,0.00019895,2]
[359728756,1746283503620,-450.0,0.00019895,2]
[359728757,1746283503646,-460.33,0.00019895,2]
[359728758,1746283503671,-450.0,0.00019895,2]
[359728759,1746283503693,-444.63253979,0.00019895,2]
[359728760,1746283503716,-803.69,0.00019895,2]
[359728761,1746283503738,-450.0,0.00019895,2]
[359728762,1746283503759,-450.0,0.00019895,2]
[359728763,1746283503783,-450.0,0.00019895,2]
[359728764,1746283503805,-450.0,0.00019895,2]
[359728765,1746283503827,-450.0,0.00019895,2]
[359728766,1746283503849,-450.0,0.00019895,2]
[359728767,1746283503872,-620.05,0.00019895,2]
[359728768,1746283503894,-450.0,0.00019895,2]
[359728769,1746283503916,-450.0,0.00019895,2]
[359728770,1746283503937,-450.0,0.00019895,2]
[359728772,1746283503962,-1762.14,0.00019895,2]
[359728774,1746283503984,-450.0,0.00019895,2]
[359728775,1746283504005,-107672.57,0.00019895,2]
[359728776,1746283504027,-450.0,0.00019895,2]
[359728777,1746283504050,-450.0,0.00019895,2]
[359728778,1746283504071,-450.0,0.00019895,2]
[359728779,1746283504094,-450.0,0.00019895,2]
[359728780,1746283504117,-450.0,0.00019895,2]
[359728781,1746283504139,-450.0,0.00019895,2]
[359728782,1746283504160,-998.61,0.00019895,2]
[359728783,1746283504187,-646.7,0.00019895,2]
[359728784,1746283504208,-450.0,0.00019895,2]
[359728785,1746283504231,-450.0,0.00019895,2]
[359728786,1746283504254,-750.94,0.00019895,2]
[359728787,1746283504278,-450.0,0.00019895,2]
[359728788,1746283504299,-450.0,0.00019895,2]
[359728789,1746283504321,-450.0,0.00019895,2]
[359728790,1746283504343,-4076.65,0.00019895,2]
[359728791,1746283504366,-644.38,0.00019895,2]
[359728792,1746283504387,-450.0,0.00019895,2]
[359728793,1746283504408,-760.37,0.00019895,2]
[359728794,1746283504430,-469.62,0.00019895,2]
[359728795,1746283504452,-450.0,0.00019895,2]
[359728796,1746283504474,-450.0,0.00019895,2]
[359728797,1746283504496,-450.0,0.00019895,2]
[359728798,1746283504519,-646.7,0.00019895,2]
[359728799,1746283504543,-567.37,0.00019895,2]
[359728800,1746283504564,-450.0,0.00019895,2]
[359728801,1746283504588,-5442.34,0.00019895,2]
[359728802,1746283504612,-450.0,0.00019895,2]
[359728803,1746283504633,-450.0,0.00019895,2]
[359728804,1746283504655,-4080.75,0.00019895,2]
[359728805,1746283504676,-230.0,0.00019895,2]
[359728806,1746283504698,-450.0,0.00019895,2]
[359728807,1746283504721,-450.0,0.00019895,2]
[359728808,1746283504742,-450.0,0.00019895,2]
[359728809,1746283504765,-450.0,0.00019895,2]
[359728810,1746283504787,-634.47,0.00019895,2]
[359728811,1746283504808,-450.0,0.00019895,2]
[359728812,1746283504831,-450.0,0.00019895,2]
[359728813,1746283504852,-450.0,0.00019895,2]
[359728814,1746283504873,-2270.09,0.00019895,2]
[359728815,1746283504895,-630.83,0.00019895,2]
[359728816,1746283504918,-461.4,0.00019895,2]
[359728817,1746283504940,-450.0,0.00019895,2]
[359728818,1746283504963,-808.32,0.00019895,2]
[359728819,1746283505242,-876.86,0.00019895,2]
[359728820,1746283505264,-1244.78,0.00019895,2]
[359728821,1746283505286,-450.0,0.00019895,2]
[359728822,1746283505309,-450.0,0.00019895,2]
[359728823,1746283505332,-2554.92,0.00019895,2]
[359728824,1746283505354,-298.73543236,0.00019895,2]
[359728825,1746283505375,-997.72,0.00019895,2]
[359728826,1746283505397,-450.0,0.00019895,2]
[359728827,1746283505418,-450.0,0.00019895,2]
[359728828,1746283505440,-450.0,0.00019895,2]
[359728829,1746283505463,-450.0,0.00019895,2]
[359728830,1746283505485,-1052.85,0.00019895,2]
[359728831,1746283505507,-450.0,0.00019895,2]
[359728832,1746283505529,-546.77,0.00019895,2]
[359728833,1746283505552,-261.63,0.00019895,2]
[359728834,1746283505575,-450.0,0.00019895,2]
[359728835,1746283505596,-452.63963356,0.00019895,2]
[359728836,1746283505619,-450.0,0.00019895,2]
[359728837,1746283505641,-463.52,0.00019895,2]
[359728838,1746283505663,-5031.75,0.00019895,2]
[359728839,1746283505685,-450.0,0.00019895,2]
[359728840,1746283505706,-450.0,0.00019895,2]
[359728841,1746283505727,-737.11,0.00019895,2]
[359728842,1746283505748,-450.0,0.00019895,2]
[359728843,1746283505769,-1995.8,0.00019895,2]
[359728844,1746283505790,-450.0,0.00019895,2]
[359728845,1746283505810,-450.0,0.00019895,2]
[359728846,1746283505832,-6211.51,0.00019895,2]
[359728847,1746283505858,-450.0,0.00019895,2]
[359728848,1746283505880,-551.94,0.00019895,2]
[359728849,1746283505902,-450.0,0.00019895,2]
[359728850,1746283505924,-450.0,0.00019895,2]
[359728851,1746283505946,-450.0,0.00019895,2]
[359728852,1746283505968,-5633.86,0.00019895,2]
[359728853,1746283505990,-450.0,0.00019895,2]
[359728854,1746283506011,-481.624246,0.00019895,2]
[359728855,1746283506034,-450.0,0.00019895,2]
[359728856,1746283506056,-450.0,0.00019895,2]
[359728857,1746283506078,-450.0,0.00019895,2]
[359728858,1746283506099,-853.6,0.00019895,2]
[359728859,1746283506121,-1365.79,0.00019895,2]
[359728860,1746283506143,-450.0,0.00019895,2]
[359728861,1746283506166,-450.0,0.00019895,2]
[359728862,1746283506191,-1942.09,0.00019895,2]
[359728863,1746283506213,-459.43,0.00019895,2]
[359728864,1746283506237,-450.0,0.00019895,2]
[359728865,1746283506260,-450.0,0.00019895,2]
[359728866,1746283506282,-497.61,0.00019895,2]
[359728867,1746283506305,-315.66,0.00019895,2]
[359728868,1746283506327,-450.0,0.00019895,2]
[359728869,1746283506349,-450.0,0.00019895,2]
[359728870,1746283506373,-450.0,0.00019895,2]
[359728871,1746283506395,-179.24,0.00019895,2]
[359728872,1746283506422,-450.0,0.00019895,2]
[359728873,1746283506445,-450.0,0.00019895,2]
[359728874,1746283506469,-4433.41,0.00019895,2]
[359728875,1746283506493,-450.0,0.00019895,2]
[359728876,1746283506517,-450.0,0.00019895,2]
[359728877,1746283506540,-1233.83,0.00019895,2]
[359728878,1746283506563,-450.0,0.00019895,2]
[359728879,1746283506586,-5279.71,0.00019895,2]
[359728880,1746283506612,-1000.63,0.00019895,2]
[359728881,1746283506636,-450.0,0.00019895,2]
[359728882,1746283506658,-450.0,0.00019895,2]
[359728883,1746283506680,-24413.78,0.00019895,2]
[359728884,1746283506703,-450.0,0.00019895,2]
[359728885,1746283506728,-450.0,0.00019895,2]
[359728886,1746283506750,-450.0,0.00019895,2]
[359728887,1746283506773,-1514.89,0.00019895,2]
[359728888,1746283506796,-814.78,0.00019895,2]
[359728889,1746283506820,-1703.67,0.00019895,2]
[359728890,1746283506843,-450.0,0.00019896,2]
[359728891,1746283506865,-450.0,0.00019896,2]
[359728892,1746283506888,-450.0,0.00019896,2]
[359728893,1746283506911,-450.0,0.00019896,2]
[359728894,1746283506934,-750.41,0.00019896,2]
[359728895,1746283506961,-450.0,0.00019896,2]
[359728896,1746283506982,-450.0,0.00019896,2]
[359728897,1746283507005,-450.0,0.00019896,2]
[359728898,1746283507028,-450.0,0.00019896,2]
[359728899,1746283507054,-580.08162702,0.00019896,2]
[359728900,1746283507077,-450.0,0.00019896,2]
[359728901,1746283507100,-450.0,0.00019896,2]
[359728902,1746283507122,-450.0,0.00019896,2]
[359728903,1746283507143,-450.0,0.00019896,2]
[359728904,1746283507166,-450.0,0.00019896,2]
[359728905,1746283507191,-450.0,0.00019896,2]
[359728906,1746283507213,-450.0,0.00019896,2]
[359728907,1746283507235,-450.0,0.00019896,2]
[359728908,1746283507257,-450.0,0.00019896,2]
[359728909,1746283507279,-450.0,0.00019896,2]
[359728910,1746283507301,-450.0,0.00019896,2]
[359728911,1746283507324,-450.0,0.00019896,2]
[359728912,1746283507348,-450.0,0.00019896,2]
[359728913,1746283507370,-450.0,0.00019896,2]
[359728914,1746283507392,-450.0,0.00019896,2]
[359728915,1746283507415,-727.27,0.00019896,2]
[359728916,1746283507437,-450.0,0.00019896,2]
[359728917,1746283507460,-737.88,0.00019896,2]
[359728918,1746283507482,-567.94,0.00019896,2]
[359728919,1746283507504,-450.0,0.00019896,2]
[359728920,1746283507526,-450.0,0.00019896,2]
[359728921,1746283507549,-450.0,0.00019896,2]
[359728922,1746283507571,-450.0,0.00019896,2]
[359728923,1746283507594,-450.0,0.00019896,2]
[359728924,1746283507617,-450.15,0.00019896,2]
[359728925,1746283507640,-450.0,0.00019896,2]
[359728926,1746283507662,-1542.89,0.00019896,2]
[359728927,1746283507695,-493.01,0.00019896,2]
[359728928,1746283507719,-450.0,0.00019896,2]
[359728929,1746283507741,-463.86,0.00019896,2]
[359728930,1746283507763,-450.0,0.00019896,2]
[359728931,1746283507786,-312.69658061,0.00019896,2]
[359728932,1746283507808,-450.0,0.00019896,2]
[359728933,1746283507831,-585.14,0.00019896,2]
[359728934,1746283507853,-232.77923705,0.00019896,2]
[359728935,1746283507876,-533.33,0.00019896,2]
[359728936,1746283507897,-450.0,0.00019896,2]
[359728937,1746283507919,-450.0,0.00019896,2]
[359728938,1746283507942,-450.0,0.00019896,2]
[359728939,1746283507963,-450.0,0.00019896,2]
[359728940,1746283507984,-771.04,0.00019896,2]
[359728941,1746283508006,-581.62,0.00019896,2]
[359728942,1746283508028,-531.95,0.00019896,2]
[359728943,1746283508050,-477.84,0.00019896,2]
[359728944,1746283508071,-450.0,0.00019896,2]
[359728945,1746283508094,-450.0,0.00019896,2]
[359728946,1746283508116,-450.0,0.00019896,2]
[359728947,1746283508138,-450.0,0.00019896,2]
[359728948,1746283508160,-999.0,0.00019896,2]
[359728949,1746283508186,-450.0,0.00019896,2]
[359728950,1746283508212,-737.29,0.00019896,2]
[359728951,1746283508236,-745.07,0.00019896,2]
[359728952,1746283508262,-450.0,0.00019896,2]
[359728953,1746283508287,-450.0,0.00019896,2]
[359728954,1746283508311,-573.59694529,0.00019896,2]
[359728955,1746283508334,-450.0,0.00019896,2]
[359728956,1746283508358,-512.7,0.00019896,2]
[359728957,1746283508381,-450.0,0.00019896,2]
[359728958,1746283508404,-508.97,0.00019896,2]
[359728959,1746283508427,-1004.54,0.00019896,2]
[359728960,1746283508452,-450.0,0.00019896,2]
[359728961,1746283508475,-615.7,0.00019896,2]
[359728962,1746283508498,-450.0,0.00019896,2]
[359728963,1746283508524,-654.95,0.00019896,2]
[359728964,1746283508548,-450.0,0.00019896,2]
[359728965,1746283508571,-450.0,0.00019896,2]
[359728966,1746283508594,-450.0,0.00019896,2]
[359728967,1746283508617,-450.0,0.00019896,2]
[359728968,1746283508639,-612.13,0.00019896,2]
[359728969,1746283508662,-450.0,0.00019896,2]
[359728970,1746283508685,-450.0,0.00019896,2]
[359728971,1746283508708,-450.0,0.00019896,2]
[359728972,1746283508729,-450.0,0.00019896,2]
[359728973,1746283508752,-450.0,0.00019896,2]
[359728974,1746283508774,-450.0,0.00019896,2]
[359728975,1746283508797,-450.0,0.00019896,2]
[359728976,1746283508819,-672.07,0.00019896,2]
[359728977,1746283508841,-450.0,0.00019896,2]
[359728978,1746283508867,-450.0,0.00019896,2]
[359728979,1746283508890,-480.48093408,0.00019896,2]
[359728980,1746283508914,-450.0,0.00019896,2]
[359728981,1746283508935,-450.0,0.00019896,2]
[359728982,1746283508958,-450.0,0.00019896,2]
[359728983,1746283508980,-450.0,0.00019896,2]
[359728984,1746283509004,-531.13,0.00019896,2]
[359728985,1746283509027,-450.0,0.00019896,2]
[359728986,1746283509051,-1196.61,0.00019896,2]
[359728987,1746283509074,-450.0,0.00019896,2]
[359728988,1746283509096,-450.0,0.00019896,2]
[359728989,1746283509118,-450.0,0.00019896,2]
[359728990,1746283509140,-450.0,0.00019896,2]
[359728991,1746283509162,-726.28,0.00019896,2]
[359728992,1746283509189,-513.89,0.00019896,2]
[359728993,1746283509211,-248.85891665,0.00019896,2]
[359728994,1746283509234,-450.0,0.00019896,2]
[359728995,1746283509257,-450.0,0.00019896,2]
[359728996,1746283509585,-712.6,0.00019896,2]
[359728997,1746283509608,-485.04,0.00019896,2]
[359728998,1746283509631,-450.0,0.00019896,2]
[359728999,1746283509653,-450.0,0.00019896,2]
[359729000,1746283509676,-1720.01,0.00019896,2]
[359729001,1746283509699,-450.0,0.00019896,2]
[359729002,1746283509722,-450.0,0.00019896,2]
[359729003,1746283509744,-491.16,0.00019896,2]
[359729004,1746283509767,-450.0,0.00019896,2]
[359729005,1746283509790,-700.13,0.00019896,2]
[359729006,1746283509813,-450.0,0.00019896,2]
[359729007,1746283509835,-450.0,0.00019896,2]
[359729008,1746283509858,-450.0,0.00019896,2]
[359729009,1746283509880,-804.81,0.00019896,2]
[359729010,1746283509901,-665.42,0.00019896,2]
[359729011,1746283509925,-150.0,0.00019896,2]
[359729012,1746283509947,-13456.58,0.00019896,2]
[359729013,1746283509969,-460.8437359,0.00019896,2]
[359729014,1746283509991,-485.03,0.00019896,2]
[359729015,1746283510014,-462.66,0.00019896,2]
[359729016,1746283510038,-450.0,0.00019896,2]
[359729017,1746283510060,-553.05309995,0.00019896,2]
[359729018,1746283510081,-1212.56,0.00019896,2]
[359729019,1746283510103,-450.0,0.00019896,2]
[359729020,1746283510126,-450.0,0.00019896,2]
[359729021,1746283510148,-450.0,0.00019896,2]
[359729022,1746283510169,-450.0,0.00019896,2]
[359729023,1746283510196,-450.0,0.00019896,2]
[359729024,1746283510219,-450.0,0.00019896,2]
[359729025,1746283510241,-450.0,0.00019896,2]
[359729026,1746283510263,-450.0,0.00019896,2]
[359729027,1746283510286,-585.82,0.00019896,2]
[359729028,1746283510308,-192.22,0.00019896,2]
[359729029,1746283510331,-450.0,0.00019896,2]
[359729030,1746283510354,-494.5093263,0.00019896,2]
[359729031,1746283510377,-527.9,0.00019896,2]
[359729032,1746283510399,-609.98,0.00019896,2]
[359729033,1746283510421,-450.0,0.00019896,2]
[359729034,1746283510441,-450.0,0.00019896,2]
[359729035,1746283510463,-450.0,0.00019896,2]
[359729036,1746283510485,-952.57,0.00019896,2]
[359729037,1746283510507,-450.0,0.00019896,2]
[359729038,1746283510528,-450.0,0.00019896,2]
[359729039,1746283510549,-450.0,0.00019896,2]
[359729040,1746283510571,-450.0,0.00019896,2]
[359729041,1746283510593,-450.0,0.00019896,2]
[359729042,1746283510616,-681.38,0.00019896,2]
[359729043,1746283510637,-450.0,0.00019896,2]
[359729044,1746283510660,-601.1,0.00019896,2]
[359729045,1746283510681,-450.0,0.00019896,2]
[359729046,1746283510702,-450.0,0.00019896,2]
[359729047,1746283510723,-450.0,0.00019896,2]
[359729048,1746283510744,-1959.72,0.00019896,2]
[359729049,1746283510766,-450.0,0.00019896,2]
[359729050,1746283510788,-450.0,0.00019896,2]
[359729051,1746283510809,-450.0,0.00019896,2]
[359729052,1746283510830,-450.0,0.00019896,2]
[359729053,1746283510853,-545.17390461,0.00019896,2]
[359729054,1746283510876,-450.0,0.00019896,2]
[359729055,1746283510900,-450.0,0.00019896,2]
[359729056,1746283510923,-687.87,0.00019896,2]
[359729057,1746283510946,-461.61160083,0.00019896,2]
[359729058,1746283510971,-578.61,0.00019896,2]
[359729059,1746283510993,-893.61,0.00019896,2]
[359729060,1746283511019,-450.0,0.00019896,2]
[359729061,1746283511043,-450.0,0.00019896,2]
[359729062,1746283511066,-456.28960319,0.00019896,2]
[359729063,1746283511088,-383.77151353,0.00019896,2]
[359729064,1746283513814,-450.0,0.0001962,2]
[359729065,1746283513837,-450.0,0.0001962,2]
[359729066,1746283513860,-450.0,0.0001962,2]
[359729067,1746283513883,-450.0,0.0001962,2]
[359729068,1746283513904,-450.0,0.0001962,2]
[359729069,1746283513925,-450.0,0.0001962,2]
[359729070,1746283513947,-450.0,0.00019621,2]
[359729071,1746283513968,-1200.0,0.00019621,2]
[359729072,1746283514003,-300.0,0.00019621,2]
[359729073,1746283514029,-350.0,0.00019621,2]
[359729074,1746283514904,3420.53,0.00018973,2]
[359729075,1746283542833,250.0,0.0001895,7]
[359729076,1746283565936,-300.0,0.0001952,2]
[359729077,1746283565959,-200.0,0.00019521,2]
[359729078,1746283565983,-92036.8778,0.00019521,2]
[359729079,1746283566024,-500.0,0.00019523,2]
[359729080,1746283566058,-500.0,0.00019523,2]
[359729081,1746283566093,-500.0,0.00019523,2]
[359729082,1746283566129,-500.0,0.00019523,2]
[359729083,1746283566164,-500.0,0.00019523,2]
[359729084,1746283566199,-500.0,0.00019523,2]
[359729085,1746283566234,-500.0,0.00019523,2]
[359729086,1746283566269,-500.0,0.00019523,2]
[359729087,1746283566302,-500.0,0.00019523,2]